bitfinex-derivatives/quotes_BTCF0:USTF0_20241109
["timestamp","ask_amount","ask_price","bid_price","bid_amount"]
[1731169966651,0.0325,76158.0,76157.0,0.065617]
[1731169968136,0.0302,76162.0,76161.0,0.065614]
[1731169968345,0.0302,76162.0,76161.0,0.13901074]
[1731169968552,0.22769525,76162.0,76161.0,0.13901074]
[1731169969038,0.22769525,76162.0,76161.0,0.065614]
[1731169969239,0.42441604,76162.0,76158.0,0.0061]
[1731169969546,0.3608,76160.0,76158.0,0.0061]
[1731169969839,0.19672079,76159.0,76158.0,0.0061]
[1731169971146,0.19672079,76159.0,76152.0,0.07339674]
[1731169971542,0.05759005,76158.0,76152.0,0.07339674]
[1731169971832,0.05769464,76157.0,76152.0,0.07339674]
[1731169972038,0.53271674,76160.0,76158.0,0.065616]
[1731169972241,0.25521241,76159.0,76158.0,0.065616]
[1731169972542,0.05771098,76159.0,76158.0,0.065616]
[1731169972750,0.25521241,76159.0,76158.0,0.065616]
[1731169976249,0.35221241,76159.0,76158.0,0.065616]
[1731169976949,0.25521241,76159.0,76158.0,0.065616]
[1731169978452,0.19750143,76159.0,76158.0,0.065616]
[1731169980358,0.27089817,76159.0,76158.0,0.065616]
[1731169982656,0.35024598,76159.0,76158.0,0.065616]
[1731169983253,0.32884027,76159.0,76158.0,0.065616]
[1731169984262,0.25544353,76159.0,76158.0,0.065616]
[1731169985260,0.35001077,76159.0,76158.0,0.065616]
[1731169985560,0.41695485,76159.0,76158.0,0.065616]
[1731169985950,0.32884027,76159.0,76158.0,0.065616]
[1731169986256,0.41680686,76159.0,76158.0,0.065616]
[1731169986460,0.39571179,76159.0,76158.0,0.065616]
[1731169986766,0.32884027,76159.0,76158.0,0.065616]
[1731169988547,0.35336353,76159.0,76158.0,0.065616]
[1731169989351,0.35336353,76159.0,76156.0,0.03901274]
[1731169989551,0.0579421,76158.0,76157.0,0.065617]
[1731169992753,0.0579421,76158.0,76157.0,0.13901374]
[1731169993358,0.19989089,76158.0,76157.0,0.13901374]
[1731169993663,0.19911573,76158.0,76157.0,0.13901374]
[1731169994161,0.2184418,76158.0,76157.0,0.13901374]
[1731169994368,0.19911573,76158.0,76157.0,0.13901374]
[1731169995460,0.29703573,76158.0,76157.0,0.13901374]
[1731169997664,0.22145748,76158.0,76157.0,0.13901374]
[1731169998170,0.29696675,76158.0,76157.0,0.13901374]
[1731169998365,0.19904675,76158.0,76157.0,0.13901374]
[1731169998567,0.22137357,76158.0,76157.0,0.13901374]
[1731169999365,0.22137357,76158.0,76157.0,0.065617]
[1731169999663,0.22137357,76158.0,76157.0,0.13901374]
[1731170000368,0.09792,76158.0,76157.0,0.13901374]
[1731170001458,0.3608,76160.0,76157.0,0.13901374]
[1731170001665,0.45872,76160.0,76157.0,0.13901374]
[1731170001861,0.19749309,76159.0,76157.0,0.13901374]
[1731170002061,0.19749309,76159.0,76157.0,0.07339674]
[1731170002266,0.46024,76160.0,76157.0,0.07339674]
[1731170002464,0.46024,76160.0,76159.0,0.065616]
[1731170002777,0.3608,76160.0,76159.0,0.065616]
[1731170004564,0.43419674,76160.0,76154.0,0.071719]
[1731170004765,0.43419674,76160.0,76157.0,0.065617]
[1731170004968,0.3608,76160.0,76157.0,0.065617]
[1731170006272,0.3608,76160.0,76156.0,0.07339674]
[1731170006467,0.3608,76160.0,76158.0,0.065616]
[1731170007871,0.43419674,76160.0,76158.0,0.065616]
[1731170008677,0.12352592,76159.0,76158.0,0.065616]
[1731170010776,0.48432592,76159.0,76158.0,0.065616]
[1731170011779,0.12352592,76159.0,76158.0,0.065616]
[1731170013575,0.05744454,76159.0,76157.0,0.426417]
[1731170013774,0.12398556,76158.0,76157.0,0.065617]
[1731170014079,0.12386141,76158.0,76157.0,0.065617]
[1731170014269,0.12388191,76158.0,76157.0,0.065617]
[1731170014470,0.05744454,76158.0,76157.0,0.065617]
[1731170015469,0.0061,76162.0,76155.0,0.50827348]
[1731170015678,0.0061,76162.0,76161.0,0.13901074]
[1731170021985,0.0306,76174.0,76173.0,0.065603]
[1731170022184,0.3608,76184.0,76173.0,0.07339674]
[1731170022185,0.03923683,76176.0,76173.0,0.07339674]
[1731170022482,0.0315,76188.0,76175.0,0.49979874]
[1731170022677,0.0315,76188.0,76175.0,0.426402]
[1731170022878,0.0315,76188.0,76187.0,0.065591]
[1731170023082,0.0315,76188.0,76187.0,0.13898774]
[1731170023288,0.22937205,76188.0,76187.0,0.13898774]
[1731170024781,0.0315,76188.0,76187.0,0.13898774]
[1731170025084,0.0315,76188.0,76187.0,0.065591]
[1731170030680,0.0892574,76188.0,76187.0,0.065591]
[1731170035487,0.0315,76188.0,76187.0,0.065591]
[1731170036489,0.08936682,76188.0,76187.0,0.065591]
[1731170037000,0.0315,76188.0,76187.0,0.065591]
[1731170040389,0.0319,76189.0,76188.0,0.065591]
[1731170045894,0.0319,76189.0,76188.0,0.13898774]
[1731170046398,0.0319,76189.0,76188.0,0.065591]
[1731170046700,0.0319,76189.0,76188.0,0.21238448]
[1731170046895,0.0319,76189.0,76188.0,0.13898774]
[1731170048488,0.04602682,76195.0,76184.0,1.50682]
[1731170048689,0.04602682,76195.0,76194.0,0.21237848]
[1731170048902,0.03992682,76195.0,76194.0,0.21237848]
[1731170049090,0.3912,76199.0,76198.0,0.065582]
[1731170049290,0.44800201,76199.0,76198.0,0.21237548]
[1731170050400,0.48807195,76199.0,76198.0,0.21237548]
[1731170051599,0.12727195,76199.0,76198.0,0.21237548]
[1731170051805,0.15767195,76199.0,76198.0,0.21237548]
[1731170053002,0.15790875,76199.0,76198.0,0.21237548]
[1731170053601,0.15790875,76199.0,76198.0,0.13897874]
[1731170053806,0.10086994,76199.0,76198.0,0.13897874]
[1731170054709,0.46166994,76199.0,76198.0,0.13897874]
[1731170056404,0.46166994,76199.0,76198.0,0.21237548]
[1731170057708,0.46166994,76199.0,76198.0,0.13897874]
[1731170058003,0.46166994,76199.0,76198.0,0.21237548]
[1731170058501,0.10086994,76199.0,76198.0,0.21237548]
[1731170059203,0.10086994,76199.0,76198.0,0.13897874]
[1731170060899,0.15688503,76199.0,76198.0,0.13897874]
[1731170062700,0.15688503,76199.0,76198.0,0.21237548]
[1731170063210,0.15685074,76199.0,76198.0,0.21237548]
[1731170067314,0.15685074,76199.0,76198.0,0.13897874]
[1731170068302,0.15698673,76199.0,76198.0,0.13897874]
[1731170068501,0.15698673,76199.0,76198.0,0.07339674]
[1731170068800,0.15698673,76199.0,76198.0,0.065582]
[1731170069006,0.15698673,76199.0,76198.0,0.13897874]
[1731170069007,0.10086994,76199.0,76198.0,0.13897874]
[1731170071817,0.10086994,76199.0,76198.0,0.21237548]
[1731170072219,0.10086994,76199.0,76198.0,0.13897874]
[1731170075617,0.10086994,76199.0,76198.0,0.21237548]
[1731170076007,0.10086994,76199.0,76198.0,0.13897874]
[1731170078909,0.10086994,76199.0,76198.0,0.16522614]
[1731170081823,0.10086994,76199.0,76198.0,0.23862288]
[1731170083920,0.1572649,76199.0,76198.0,0.23862288]
[1731170090918,0.3608,76205.0,76204.0,0.065577]
[1731170091119,0.3608,76205.0,76204.0,0.13897374]
[1731170092111,0.40018236,76205.0,76204.0,0.13897374]
[1731170101035,0.03938236,76205.0,76204.0,0.13897374]
[1731170101336,0.0625,76208.0,76207.0,0.065574]
[1731170101525,0.10260231,76208.0,76207.0,0.065574]
[1731170103941,0.10260231,76208.0,76207.0,0.13897074]
[1731170105939,0.15831855,76208.0,76207.0,0.07339674]
[1731170106637,0.15831855,76208.0,76207.0,0.13897074]
[1731170107435,0.15831855,76208.0,76201.0,0.0061]
[1731170107436,0.065578,76202.0,76201.0,0.0061]
[1731170107632,0.065578,76202.0,76191.0,0.07536535]
[1731170107633,0.48991298,76202.0,76191.0,0.07536535]
[1731170107935,0.426385,76194.0,76193.0,0.065586]
[1731170108330,0.3608,76194.0,76193.0,0.065586]
[1731170108527,0.41640599,76194.0,76193.0,0.065586]
[1731170110143,0.51352599,76194.0,76193.0,0.065586]
[1731170111044,0.45792,76194.0,76193.0,0.065586]
[1731170112945,0.51382423,76194.0,76193.0,0.065586]
[1731170113148,0.7102829,76194.0,76193.0,0.065586]
[1731170113445,0.065587,76192.0,76191.0,0.00196861]
[1731170113648,0.05590423,76192.0,76190.0,0.065589]
[1731170113951,0.065588,76191.0,76190.0,0.065589]
[1731170114440,0.065588,76191.0,76185.0,0.07339674]
[1731170114441,0.26292758,76191.0,76185.0,0.07339674]
[1731170114646,0.3608,76186.0,76185.0,0.13898974]
[1731170115436,0.55733565,76186.0,76185.0,0.13898974]
[1731170115640,0.62292765,76186.0,76185.0,0.065593]
[1731170115848,0.81958472,76186.0,76185.0,0.065593]
[1731170116350,0.75399272,76186.0,76180.0,0.065597]
[1731170116649,0.09712,76185.0,76180.0,0.065597]
[1731170116946,0.19708505,76184.0,76180.0,0.065597]
[1731170117546,0.0319,76183.0,76180.0,0.065597]
[1731170117748,0.065597,76181.0,76180.0,0.065597]
[1731170118248,0.26207295,76181.0,76180.0,0.065597]
[1731170120445,0.19647595,76181.0,76180.0,0.13899374]
[1731170120844,0.19577957,76182.0,76180.0,0.13899374]
[1731170121045,0.0319,76183.0,76180.0,0.13899374]
[1731170121346,0.130697,76181.0,76180.0,0.13899374]
[1731170121752,0.32719037,76181.0,76180.0,0.13899374]
[1731170124259,0.32719037,76181.0,76180.0,0.065597]
[1731170124451,0.79438711,76181.0,76176.0,0.0061]
[1731170124643,0.49979674,76177.0,76176.0,0.071701]
[1731170124840,0.49979674,76177.0,76176.0,0.065601]
[1731170125041,0.6966157,76177.0,76176.0,0.065601]
[1731170128353,0.7937357,76177.0,76176.0,0.065601]
[1731170131858,0.6966157,76177.0,76176.0,0.065601]
[1731170132053,0.7937357,76177.0,76176.0,0.065601]
[1731170133250,0.6966157,76177.0,76176.0,0.065601]
[1731170133448,0.62321896,76177.0,76176.0,0.065601]
[1731170133651,0.72033896,76177.0,76176.0,0.065601]
[1731170136261,0.55761896,76177.0,76176.0,0.065601]
[1731170136457,0.65473896,76177.0,76176.0,0.065601]
[1731170139952,0.65473896,76177.0,76176.0,0.09185598]
[1731170142765,0.0061,76180.0,76179.0,0.065598]
[1731170151661,0.0061,76180.0,76179.0,0.13899474]
[1731170151860,0.0061,76180.0,76179.0,0.065598]
[1731170153962,0.40149515,76195.0,76179.0,0.46719674]
[1731170154164,0.40149515,76195.0,76194.0,0.13898174]
[1731170154165,0.3608,76195.0,76194.0,0.13898174]
[1731170154371,0.41790026,76195.0,76194.0,0.13898174]
[1731170155375,0.41790801,76195.0,76194.0,0.13898174]
[1731170155962,0.3608,76195.0,76194.0,0.13898174]
[1731170162665,0.00196908,76202.0,76194.0,0.57317848]
[1731170162868,0.00196908,76202.0,76201.0,0.13897574]
[1731170163073,0.00196908,76202.0,76201.0,0.065579]
[1731170167270,0.00196908,76202.0,76201.0,0.097479]
[1731170168377,0.032,76209.0,76201.0,0.097479]
[1731170168580,0.032,76209.0,76208.0,0.13896974]
[1731170172383,0.0315,76210.0,76209.0,0.065572]
[1731170173183,0.0315,76210.0,76209.0,0.13896874]
[1731170173379,0.0315,76210.0,76209.0,0.065572]
[1731170175478,0.04011842,76216.0,76215.0,0.065567]
[1731170175689,0.0318,76218.0,76215.0,0.21236048]
[1731170175876,0.0318,76218.0,76217.0,0.065566]
[1731170176486,0.0306,76225.0,76218.0,0.065565]
[1731170176487,0.03999121,76219.0,76218.0,0.065565]
[1731170176681,0.0306,76225.0,76221.0,0.065562]
[1731170176879,0.0306,76225.0,76224.0,0.06556]
[1731170180984,0.0306,76225.0,76221.0,0.07339674]
[1731170181687,0.0306,76225.0,76224.0,0.06556]
[1731170182287,0.00196861,76227.0,76226.0,0.065558]
[1731170182488,0.00196861,76227.0,76226.0,0.13895474]
[1731170186389,0.00196861,76227.0,76226.0,0.21235148]
[1731170186588,0.00196861,76227.0,76226.0,0.13895474]
[1731170189985,0.00196861,76227.0,76226.0,0.1651925]
[1731170192202,0.00196861,76227.0,76226.0,0.23858924]
[1731170192389,0.3608,76230.0,76226.0,0.09179576]
[1731170192695,0.3608,76230.0,76229.0,0.13895174]
[1731170194090,0.3608,76230.0,76229.0,0.21234848]
[1731170194394,0.0308,76233.0,76232.0,0.065553]
[1731170195490,0.09004053,76233.0,76232.0,0.065553]
[1731170195693,0.0308,76233.0,76232.0,0.065553]
[1731170196685,0.0314,76236.0,76235.0,0.06555]
[1731170196882,0.09076033,76236.0,76235.0,0.13894674]
[1731170197693,0.0314,76236.0,76235.0,0.13894674]
[1731170197888,0.15983412,76236.0,76235.0,0.13894674]
[1731170199313,0.18367713,76236.0,76235.0,0.13894674]
[1731170199490,0.15983412,76236.0,76235.0,0.13894674]
[1731170199797,0.05524238,76236.0,76235.0,0.13894674]
[1731170200185,0.15983412,76236.0,76235.0,0.13894674]
[1731170200797,0.18368343,76236.0,76235.0,0.13894674]
[1731170201404,0.15228343,76236.0,76235.0,0.13894674]
[1731170201800,0.12843412,76236.0,76235.0,0.13894674]
[1731170202092,0.3608,76239.0,76235.0,0.13894674]
[1731170202302,0.15251663,76238.0,76237.0,0.065548]
[1731170202800,0.23135036,76238.0,76237.0,0.065548]
[1731170203199,0.2076919,76238.0,76237.0,0.065548]
[1731170203899,0.12885817,76238.0,76237.0,0.065548]
[1731170205798,0.3608,76239.0,76238.0,0.065548]
[1731170206195,0.42044668,76239.0,76238.0,0.065548]
[1731170206996,0.3608,76239.0,76238.0,0.065548]
[1731170207398,0.42048026,76239.0,76238.0,0.065548]
[1731170208898,0.42042538,76239.0,76238.0,0.065548]
[1731170209812,0.3608,76239.0,76238.0,0.065548]
[1731170214801,0.3608,76239.0,76238.0,0.13894474]
[1731170215005,0.3608,76239.0,76238.0,0.065548]
[1731170215207,0.3608,76239.0,76238.0,0.13894474]
[1731170215610,0.3608,76239.0,76238.0,0.065548]
[1731170216315,0.0061,76247.0,76246.0,0.065541]
[1731170216511,0.16126,76256.0,76238.0,0.065548]
[1731170216512,0.16126,76256.0,76252.0,0.065535]
[1731170216702,0.05960035,76253.0,76249.0,0.0061]
[1731170216907,0.0593201,76252.0,76248.0,0.065539]
[1731170217109,0.39440176,76253.0,76248.0,0.065539]
[1731170217411,0.05922669,76252.0,76248.0,0.065539]
[1731170217611,0.05917514,76251.0,76246.0,0.07339674]
[1731170217807,0.19756562,76253.0,76251.0,0.065536]
[1731170218014,0.08085935,76252.0,76251.0,0.065536]
[1731170218209,0.05926357,76252.0,76251.0,0.065536]
[1731170219916,0.40044627,76254.0,76248.0,0.0061]
[1731170220118,0.05941172,76253.0,76252.0,0.065535]
[1731170220310,0.25556412,76253.0,76252.0,0.065535]
[1731170220816,0.40289817,76253.0,76252.0,0.065535]
[1731170221414,0.40279738,76253.0,76252.0,0.065535]
[1731170224816,0.065538,76250.0,76248.0,0.0061]
[1731170225018,0.40279738,76253.0,76248.0,0.0061]
[1731170225019,0.70645472,76249.0,76248.0,0.0061]
[1731170225214,0.9028173,76249.0,76247.0,0.065539]
[1731170225537,0.26245643,76248.0,76247.0,0.065539]
[1731170226021,0.45936893,76248.0,76247.0,0.065539]
[1731170227721,0.37751515,76248.0,76247.0,0.065539]
[1731170228223,0.065541,76245.0,76244.0,0.0061]
[1731170228417,0.065541,76245.0,76232.0,0.0262357]
[1731170228418,0.065548,76237.0,76236.0,0.0061]
[1731170228723,0.065548,76237.0,76234.0,0.065551]
[1731170228724,0.06555,76235.0,76234.0,0.065551]
[1731170228913,0.21834483,76235.0,76234.0,0.065551]
[1731170229109,0.41392557,76235.0,76234.0,0.065551]
[1731170229421,0.33186192,76235.0,76234.0,0.065551]
[1731170234124,0.065552,76233.0,76232.0,0.0262357]
[1731170234323,0.49974874,76233.0,76232.0,0.0262357]
[1731170234629,0.69655265,76233.0,76232.0,0.0262357]
[1731170235219,0.75519676,76233.0,76232.0,0.0917887]
[1731170235827,0.8233622,76233.0,76232.0,0.0917887]
[1731170236018,0.82348165,76233.0,76232.0,0.0262357]
[1731170236326,0.69655265,76233.0,76232.0,0.0262357]
[1731170236520,0.72007591,76233.0,76232.0,0.0262357]
[1731170236722,0.74407604,76233.0,76232.0,0.0262357]
[1731170237120,0.62315591,76233.0,76232.0,0.0262357]
[1731170237331,0.84761496,76233.0,76232.0,0.0262357]
[1731170238118,0.84761496,76233.0,76232.0,0.0524714]
[1731170238321,0.84761496,76233.0,76232.0,0.12586814]
[1731170239626,0.75069496,76233.0,76232.0,0.12586814]
[1731170239830,0.84761496,76233.0,76232.0,0.12586814]
[1731170242928,0.72007591,76233.0,76232.0,0.12586814]
[1731170243627,0.72007591,76233.0,76232.0,0.15210384]
[1731170244428,0.72011591,76233.0,76232.0,0.15210384]
[1731170244631,0.72011591,76233.0,76232.0,0.21765684]
[1731170245429,0.65456391,76233.0,76232.0,0.21765684]
[1731170246823,0.65456391,76233.0,76232.0,0.17173081]
[1731170247023,0.65456391,76233.0,76232.0,0.09833407]
[1731170248734,0.67862068,76233.0,76232.0,0.09833407]
[1731170250932,0.80560556,76233.0,76232.0,0.09833407]
[1731170251133,0.87115756,76233.0,76232.0,0.09833407]
[1731170253136,0.51035756,76233.0,76232.0,0.09833407]
[1731170253331,0.87115756,76233.0,76232.0,0.12456977]
[1731170255942,0.84710079,76233.0,76232.0,0.12456977]
[1731170256630,0.92529957,76233.0,76232.0,0.12456977]
[1731170256831,0.84710079,76233.0,76232.0,0.12456977]
[1731170257342,0.92532332,76233.0,76232.0,0.12456977]
[1731170257643,0.86073712,76233.0,76232.0,0.12456977]
[1731170257841,0.65456391,76233.0,76232.0,0.12456977]
[1731170259535,0.7136702,76233.0,76232.0,0.12456977]
[1731170260438,0.65456391,76233.0,76232.0,0.12456977]
[1731170261443,0.71363877,76233.0,76232.0,0.12456977]
[1731170261740,0.65456391,76233.0,76232.0,0.12456977]
[1731170262947,0.71379285,76233.0,76232.0,0.12456977]
[1731170263143,0.71379285,76233.0,76232.0,0.15080547]
[1731170263934,0.73704571,76233.0,76232.0,0.15080547]
[1731170264341,0.73706874,76233.0,76232.0,0.15080547]
[1731170265645,0.73698874,76233.0,76232.0,0.15080547]
[1731170265846,0.80579207,76233.0,76232.0,0.15080547]
[1731170270956,0.78253921,76233.0,76232.0,0.15080547]
[1731170271263,0.4888553,76233.0,76232.0,0.15080547]
[1731170271448,0.1280553,76233.0,76232.0,0.22420221]
[1731170271951,0.05925197,76233.0,76232.0,0.22420221]
[1731170272853,0.03896587,76235.0,76232.0,0.15864921]
[1731170273051,0.09688,76237.0,76232.0,0.15864921]
[1731170273359,0.09688,76237.0,76236.0,0.13894574]
[1731170273652,0.09688,76237.0,76236.0,0.065549]
[1731170274359,0.15653371,76237.0,76236.0,0.065549]
[1731170275353,0.15653371,76237.0,76236.0,0.09178332]
[1731170275556,0.09688,76237.0,76236.0,0.09178332]
[1731170275758,0.15662861,76237.0,76236.0,0.09178332]
[1731170276052,0.09688,76237.0,76236.0,0.09178332]
[1731170276256,0.07339674,76238.0,76237.0,0.065548]
[1731170276257,0.17027674,76238.0,76237.0,0.065548]
[1731170276460,0.27040897,76238.0,76237.0,0.065548]
[1731170276754,0.40860089,76238.0,76237.0,0.065548]
[1731170276959,0.46838007,76238.0,76237.0,0.065548]
[1731170277161,0.39498333,76238.0,76237.0,0.065548]
[1731170277456,0.39501959,76238.0,76237.0,0.065548]
[1731170277757,0.40860089,76238.0,76237.0,0.065548]
[1731170277954,0.39505403,76238.0,76237.0,0.065548]
[1731170279063,0.35855576,76238.0,76237.0,0.065548]
[1731170279464,0.41838548,76238.0,76237.0,0.065548]
[1731170279656,0.35855576,76238.0,76237.0,0.065548]
[1731170279865,0.35855576,76238.0,76236.0,0.02623432]
[1731170280058,0.40075215,76238.0,76237.0,0.065548]
[1731170280258,0.48394957,76238.0,76237.0,0.065548]
[1731170280661,0.42452089,76238.0,76237.0,0.065548]
[1731170281058,0.48402723,76238.0,76237.0,0.065548]
[1731170281659,0.41847923,76238.0,76237.0,0.065548]
[1731170281871,0.49187597,76238.0,76237.0,0.065548]
[1731170282361,0.41847923,76238.0,76237.0,0.065548]
[1731170283875,0.41847923,76238.0,76237.0,0.09178198]
[1731170284466,0.48402723,76238.0,76237.0,0.09178198]
[1731170285366,0.48402723,76238.0,76237.0,0.02623398]
[1731170285559,0.62671219,76238.0,76237.0,0.02623398]
[1731170285761,0.65941219,76238.0,76237.0,0.02623398]
[1731170285966,0.65941219,76238.0,76237.0,0.00891574]
[1731170287060,0.59012397,76238.0,76237.0,0.00891574]
[1731170287674,0.59018363,76238.0,76237.0,0.00891574]
[1731170287861,0.7381064,76238.0,76237.0,0.03514972]
[1731170288066,1.4597064,76238.0,76237.0,0.03514972]
[1731170289879,0.7381064,76238.0,76237.0,0.03514972]
[1731170290265,1.4597064,76238.0,76237.0,0.03514972]
[1731170290675,1.82326241,76238.0,76236.0,0.02623432]
[1731170290868,0.78468113,76237.0,76236.0,0.02623432]
[1731170291174,0.78468113,76237.0,76224.0,0.02623845]
[1731170291175,0.065559,76225.0,76224.0,0.02623845]
[1731170291375,1.05119597,76225.0,76224.0,0.02623845]
[1731170291567,1.5809962,76225.0,76224.0,0.02623845]
[1731170292067,1.55476222,76225.0,76224.0,0.02623845]
[1731170295878,1.40683945,76225.0,76224.0,0.02623845]
[1731170296077,1.40567139,76225.0,76224.0,0.02623845]
[1731170297784,1.44565601,76225.0,76224.0,0.02623845]
[1731170298180,1.38725807,76225.0,76224.0,0.02623845]
[1731170301187,1.36262238,76225.0,76224.0,0.02623845]
[1731170303586,1.39280781,76225.0,76224.0,0.02623845]
[1731170304278,1.41701839,76225.0,76224.0,0.02623845]
[1731170305487,1.39280781,76225.0,76224.0,0.02623845]
[1731170305985,1.39280781,76225.0,76224.0,0.02273845]
[1731170306986,0.67120781,76225.0,76224.0,0.02273845]
[1731170307288,1.39280781,76225.0,76224.0,0.02273845]
[1731170307787,1.41725003,76225.0,76224.0,0.02273845]
[1731170307983,1.81081003,76225.0,76209.0,0.0061]
[1731170308175,0.3608,76210.0,76206.0,0.0312]
[1731170308486,0.523252,76210.0,76206.0,0.0312]
[1731170310682,0.523252,76210.0,76205.0,0.07339674]
[1731170310683,0.523252,76210.0,76205.0,0.05865692]
[1731170311975,0.45768,76210.0,76205.0,0.05865692]
[1731170312182,0.065573,76209.0,76205.0,0.05865692]
[1731170312383,0.3608,76206.0,76205.0,0.05865692]
[1731170314188,0.3608,76206.0,76205.0,0.07339674]
[1731170316892,0.426375,76206.0,76205.0,0.07339674]
[1731170317892,0.065575,76206.0,76205.0,0.07339674]
[1731170318092,0.426375,76206.0,76205.0,0.07339674]
[1731170320699,0.065575,76206.0,76205.0,0.07339674]
[1731170321093,0.426375,76206.0,76205.0,0.07339674]
[1731170324790,0.426375,76206.0,76205.0,0.13897274]
[1731170326201,0.48385294,76206.0,76205.0,0.13897274]
[1731170331209,0.48384336,76206.0,76205.0,0.13897274]
[1731170332797,0.426375,76206.0,76205.0,0.13897274]
[1731170336999,0.065575,76206.0,76205.0,0.13897274]
[1731170337200,0.426375,76206.0,76205.0,0.13897274]
[1731170338401,0.4504791,76206.0,76205.0,0.13897274]
[1731170339315,0.0896791,76206.0,76205.0,0.13897274]
[1731170339609,0.4504791,76206.0,76205.0,0.13897274]
[1731170340810,0.57489511,76206.0,76205.0,0.09303327]
[1731170341207,0.57489511,76206.0,76205.0,0.065576]
[1731170342629,0.21409511,76206.0,76205.0,0.065576]
[1731170342828,0.57489511,76206.0,76205.0,0.065576]
[1731170343828,0.55079101,76206.0,76205.0,0.065576]
[1731170345129,0.49176884,76206.0,76189.0,0.00196843]
[1731170345341,0.43419674,76194.0,76189.0,0.00196843]
[1731170345629,0.07339674,76190.0,76189.0,0.00196843]
[1731170345823,0.09869904,76190.0,76189.0,0.00196843]
[1731170346026,0.2222117,76190.0,76189.0,0.00196843]
[1731170346424,0.22165844,76190.0,76189.0,0.00196843]
[1731170346837,0.22164712,76190.0,76189.0,0.00196843]
[1731170347135,0.22164712,76190.0,76186.0,0.065592]
[1731170347435,0.3608,76187.0,76186.0,0.065592]
[1731170347625,0.4183721,76187.0,76186.0,0.065592]
[1731170347821,0.3608,76187.0,76186.0,0.065592]
[1731170353640,0.3608,76187.0,76183.0,0.07339674]
[1731170353832,0.3608,76187.0,76186.0,0.065592]
[1731170366332,0.3608,76187.0,76182.0,0.065595]
[1731170366539,0.065593,76185.0,76179.0,0.07339674]
[1731170366841,0.3608,76180.0,76179.0,0.065598]
[1731170367440,0.3608,76180.0,76176.0,0.02625498]
[1731170367441,0.065599,76178.0,76176.0,0.09185598]
[1731170367650,0.0983,76177.0,76176.0,0.09185598]
[1731170368335,0.4591,76177.0,76176.0,0.02625498]
[1731170368740,0.48262405,76177.0,76176.0,0.02625498]
[1731170369146,0.5230467,76177.0,76176.0,0.02625498]
[1731170370251,0.49952265,76177.0,76176.0,0.02625498]
[1731170370643,0.59628265,76177.0,76176.0,0.09185598]
[1731170372047,0.61969495,76177.0,76176.0,0.09185598]
[1731170372850,0.61969495,76177.0,76176.0,0.02625498]
[1731170373051,0.81597481,76177.0,76176.0,0.02625498]
[1731170374844,0.79256251,76177.0,76176.0,0.02625498]
[1731170375149,1.01335866,76177.0,76176.0,0.02625498]
[1731170375740,0.99004163,76177.0,76176.0,0.02625498]
[1731170375939,0.99004163,76177.0,76176.0,0.00202155]
[1731170376340,1.38388163,76177.0,76176.0,0.00202155]
[1731170376555,1.38388163,76177.0,76176.0,0.00038681]
[1731170376751,1.40715967,76177.0,76164.0,0.065611]
[1731170377054,0.49980674,76165.0,76164.0,0.065611]
[1731170377251,0.065612,76163.0,76160.0,0.065614]
[1731170377453,0.07339674,76161.0,76160.0,0.065614]
[1731170378449,0.3608,76163.0,76162.0,0.065613]
[1731170378655,0.4576,76163.0,76162.0,0.065613]
[1731170382546,0.4004194,76163.0,76162.0,0.065613]
[1731170382750,0.4972194,76163.0,76162.0,0.065613]
[1731170383147,0.4576,76163.0,76162.0,0.065613]
[1731170383548,0.3608,76163.0,76162.0,0.065613]
[1731170386456,0.09672,76165.0,76164.0,0.065611]
[1731170386647,0.09672,76165.0,76164.0,0.13900774]
[1731170392761,0.3608,76168.0,76167.0,0.065609]
[1731170403672,0.41514465,76168.0,76167.0,0.065609]
[1731170405962,0.38500654,76168.0,76167.0,0.065609]
[1731170406569,0.38500654,76168.0,76163.0,0.07339674]
[1731170406570,0.43946062,76168.0,76163.0,0.07339674]
[1731170406774,0.02420654,76167.0,76163.0,0.07339674]
[1731170406962,0.3608,76168.0,76163.0,0.07339674]
[1731170407160,0.02403131,76167.0,76166.0,0.065609]
[1731170407356,0.3608,76168.0,76167.0,0.065609]
[1731170407557,0.38483229,76168.0,76167.0,0.065609]
[1731170410073,0.3608,76168.0,76167.0,0.065609]
[1731170410968,0.3845069,76168.0,76167.0,0.065609]
[1731170412669,0.4161069,76168.0,76167.0,0.065609]
[1731170414174,0.3924,76168.0,76167.0,0.065609]
[1731170416170,0.44584368,76168.0,76167.0,0.065609]
[1731170416866,0.50782655,76168.0,76167.0,0.065609]
[1731170417667,0.44584368,76168.0,76167.0,0.065609]
[1731170418174,0.57342701,76168.0,76167.0,0.065609]
[1731170418768,0.065614,76161.0,76157.0,0.065616]
[1731170418972,0.70589614,76168.0,76157.0,0.065616]
[1731170418973,0.43419674,76158.0,76157.0,0.065616]
[1731170419169,0.48764042,76158.0,76157.0,0.065616]
[1731170421375,0.48699515,76158.0,76157.0,0.065616]
[1731170422074,0.48697699,76158.0,76157.0,0.065616]
[1731170422466,0.52644119,76158.0,76157.0,0.065616]
[1731170422873,0.06562,76154.0,76153.0,0.065619]
[1731170423082,0.12617699,76154.0,76153.0,0.065619]
[1731170423268,0.07339674,76154.0,76153.0,0.065619]
[1731170427776,0.26971469,76154.0,76150.0,0.00196971]
[1731170427980,0.26971469,76154.0,76140.0,0.05241048]
[1731170427981,0.4661765,76154.0,76140.0,0.05241048]
[1731170428193,0.3608,76143.0,76142.0,0.06563]
[1731170434383,0.09668,76147.0,76146.0,0.065627]
[1731170437190,0.45748,76147.0,76146.0,0.065627]
[1731170437380,0.523106,76147.0,76146.0,0.065627]
[1731170437579,0.45748,76147.0,76146.0,0.065627]
[1731170448889,0.48187609,76147.0,76146.0,0.065627]
[1731170451384,0.45748,76147.0,76146.0,0.065627]
[1731170453393,0.50958521,76147.0,76146.0,0.065627]
[1731170455992,0.14878521,76147.0,76146.0,0.065627]
[1731170456192,0.50958521,76147.0,76146.0,0.065627]
[1731170457398,0.50964565,76147.0,76146.0,0.065627]
[1731170460393,0.45748,76147.0,76146.0,0.065627]
[1731170460699,0.48209279,76147.0,76146.0,0.065627]
[1731170461092,0.45748,76147.0,76146.0,0.065627]
[1731170461400,0.4820927,76147.0,76146.0,0.065627]
[1731170464302,0.67945864,76147.0,76146.0,0.065627]
[1731170465398,0.74508464,76147.0,76146.0,0.065627]
[1731170468203,1.10588464,76147.0,76146.0,0.065627]
[1731170468406,1.10588464,76147.0,76133.0,0.10559674]
[1731170468407,1.1522777,76147.0,76133.0,0.10559674]